fUST/lending_fUST_20250416
["ID","MTS","AMOUNT","RATE_DAILY","PERIOD"]
[358150649,1744780233761,-420.0,0.0002951,2]
[358150650,1744780233771,-420.0,0.0002951,2]
[358150651,1744780233781,-28.79964717,0.00029974,2]
[358150652,1744780233824,-4975.89288978,0.00029974,2]
[358150653,1744780233834,-208.17539217,0.00030614,9]
[358150654,1744780233844,-587.0,0.00032038,3]
[358150655,1744780233854,-587.0,0.00032038,3]
[358150656,1744780233864,-173.0,0.00033,2]
[358150657,1744780233874,-208.17539217,0.00033329,11]
[358150658,1744780233884,-250.0,0.00033692,2]
[358150659,1744780233893,-179.73692706,0.00034372,2]
[358150660,1744780233903,-319.06292464,0.00034479,2]
[358150661,1744780233912,-1000.0,0.00034479,5]
[358150662,1744780233921,-1000.0,0.00034479,5]
[358150663,1744780233931,-1000.0,0.00034479,5]
[358150664,1744780233941,-1000.0,0.00034479,5]
[358150665,1744780233950,-823.0,0.00034783,3]
[358150666,1744780233960,-823.0,0.00034783,3]
[358150667,1744780233969,-208.17539217,0.00036043,13]
[358150668,1744780233979,-1152.0,0.00037762,3]
[358150669,1744780233989,-1152.0,0.00037762,3]
[358150670,1744780233998,-208.17539217,0.00038757,14]
[358150671,1744780234008,-170.54,0.000391,2]
[358150672,1744780234018,-418.77734082,0.00039716,3]
[358150673,1744780234029,-20018.7701478,0.0003999,3]
[358150674,1744780234039,-50000.0,0.0004,30]
[358150675,1744780234049,-50000.0,0.0004,14]
[358150676,1744780234059,-48550.06956739,0.0004,2]
[358150699,1744780238850,-500.0,0.00028945,2]
[358150701,1744780238860,-500.0,0.00028945,2]
[358150703,1744780238870,-686.8782516,0.00028945,2]
[358150705,1744780238879,-500.0,0.00028945,2]
[358150707,1744780238888,-41.99346337,0.00028945,2]
[358150709,1744780238959,-458.00653663,0.00028945,2]
[358150710,1744780238970,-686.8782516,0.00028945,2]
[358150711,1744780238980,-686.8782516,0.00028945,2]
[358150712,1744780238989,-661.31958032,0.00028945,2]
[358150713,1744780239000,-25.55867128,0.00028945,2]
[358150714,1744780239010,-686.8782516,0.00028945,2]
[358150715,1744780239020,-686.8782516,0.00028945,2]
[358150716,1744780239035,-686.8782516,0.00028945,2]
[358150717,1744780239048,-686.8782516,0.00028945,2]
[358150718,1744780239058,-150.68298456,0.00028945,2]
[358150719,1744780239070,-386.01728257,0.00028945,2]
[358150720,1744780239088,-150.17798447,0.00028945,2]
[358150721,1744780239098,-500.0,0.00028945,2]
[358150722,1744780239107,-242.13858255,0.00028945,2]
[358150723,1744780239119,-444.73966905,0.00028945,2]
[358150724,1744780239129,-500.0,0.00028945,2]
[358150725,1744780239139,-686.8782516,0.00028945,2]
[358150726,1744780239148,-500.0,0.00028945,2]
[358150727,1744780239158,-686.8782516,0.00028945,2]
[358150728,1744780239168,-500.0,0.00028945,2]
[358150729,1744780239178,-686.8782516,0.00028945,2]
[358150730,1744780239188,-500.0,0.00028945,2]
[358150731,1744780239197,-686.8782516,0.00028945,2]
[358150732,1744780239207,-500.0,0.00028945,2]
[358150733,1744780239217,-686.8782516,0.00028945,2]
[358150734,1744780239227,-500.0,0.00028945,2]
[358150735,1744780239236,-686.8782516,0.00028945,2]
[358150736,1744780239245,-500.0,0.00028945,2]
[358150737,1744780239254,-686.8782516,0.00028945,2]
[358150738,1744780239264,-500.0,0.00028945,2]
[358150739,1744780239273,-686.8782516,0.00028945,2]
[358150740,1744780239283,-500.0,0.00028945,2]
[358150741,1744780239293,-686.8782516,0.00028945,2]
[358150742,1744780239303,-500.0,0.00028945,2]
[358150743,1744780239312,-686.8782516,0.00028945,2]
[358150744,1744780239322,-500.0,0.00028945,2]
[358150745,1744780239331,-686.8782516,0.00028945,2]
[358150746,1744780239341,-500.0,0.00028945,2]
[358150747,1744780239350,-686.8782516,0.00028945,2]
[358150748,1744780239360,-653.04630249,0.00028945,2]
[358150749,1744780239376,-33.83194911,0.00028945,2]
[358150750,1744780239386,-500.0,0.00028945,2]
[358150751,1744780239395,-287.30871469,0.00028945,2]
[358150784,1744780241186,-212.69128531,0.00028945,2]
[358150785,1744780241196,-686.8782516,0.00028945,2]
[358150786,1744780241206,-500.0,0.00028945,2]
[358150787,1744780241216,-686.8782516,0.00028945,2]
[358150788,1744780241225,-500.0,0.00028945,2]
[358150789,1744780241235,-686.8782516,0.00028945,2]
[358150790,1744780241245,-500.0,0.00028945,2]
[358150791,1744780241255,-686.8782516,0.00028945,2]
[358150792,1744780241264,-686.8782516,0.00028945,2]
[358150793,1744780241274,-500.0,0.00028945,2]
[358150794,1744780241285,-686.8782516,0.00028945,2]
[358150795,1744780241295,-18.9111583,0.00028945,2]
[358150797,1744780244129,-481.0888417,0.00028945,2]
[358150798,1744780244140,-686.8782516,0.00028945,2]
[358150799,1744780244150,-500.0,0.00028945,2]
[358150800,1744780244161,-686.8782516,0.00028945,2]
[358150801,1744780244171,-500.0,0.00028945,2]
[358150802,1744780244181,-686.8782516,0.00028945,2]
[358150803,1744780244191,-500.0,0.00028945,2]
[358150804,1744780244202,-686.8782516,0.00028945,2]
[358150805,1744780244211,-686.8782516,0.00028945,2]
[358150806,1744780244221,-500.0,0.00028945,2]
[358150807,1744780244230,-686.8782516,0.00028945,2]
[358150808,1744780244240,-429.08716127,0.00028945,2]
[358150809,1744780244250,-500.0,0.00028945,2]
[358150810,1744780244262,-686.8782516,0.00028945,2]
[358150811,1744780244272,-500.0,0.00028945,2]
[358150812,1744780244283,-686.8782516,0.00028945,2]
[358150813,1744780244293,-500.0,0.00028945,2]
[358150814,1744780244304,-686.8782516,0.00028945,2]
[358150815,1744780244314,-500.0,0.00028945,2]
[358150816,1744780244325,-686.8782516,0.00028945,2]
[358150817,1744780244335,-686.8782516,0.00028945,2]
[358150818,1744780244345,-500.0,0.00028945,2]
[358150819,1744780244355,-500.0,0.00028945,2]
[358150820,1744780244365,-686.8782516,0.00028945,2]
[358150821,1744780244375,-500.0,0.00028945,2]
[358150822,1744780244385,-686.8782516,0.00028945,2]
[358150823,1744780244394,-500.0,0.00028945,2]
[358150824,1744780244404,-686.8782516,0.00028945,2]
[358150825,1744780244414,-500.0,0.00028945,2]
[358150826,1744780244423,-686.8782516,0.00028945,2]
[358150827,1744780244433,-500.0,0.00028945,2]
[358150828,1744780244443,-500.0,0.00028945,2]
[358150829,1744780244453,-686.8782516,0.00028945,2]
[358150830,1744780244462,-686.8782516,0.00028945,2]
[358150831,1744780244472,-686.8782516,0.00028945,2]
[358150832,1744780244481,-686.8782516,0.00028945,2]
[358150833,1744780244491,-686.8782516,0.00028945,2]
[358150834,1744780244500,-686.8782516,0.00028945,2]
[358150835,1744780244510,-500.0,0.00039726,15]
[358150836,1744780244520,-500.0,0.00039726,15]
[358150837,1744780244530,-500.0,0.00039726,15]
[358150838,1744780244541,-500.0,0.00039726,15]
[358150839,1744780244550,-500.0,0.00039726,15]
[358150840,1744780244560,-500.0,0.00039726,15]
[358150841,1744780244571,-500.0,0.00039726,15]
[358150842,1744780244581,-500.0,0.00039726,15]
[358150843,1744780244591,-496.10718285,0.00039726,15]
[358150844,1744780244604,-3.89281715,0.00039726,15]
[358150845,1744780244615,-500.0,0.00039726,15]
[358150846,1744780244625,-500.0,0.00039726,15]
[358150847,1744780244635,-500.0,0.00039726,15]
[358150848,1744780244644,-500.0,0.00039726,15]
[358150849,1744780244654,-500.0,0.00039726,15]
[358150850,1744780244664,-500.0,0.00039726,15]
[358150851,1744780244674,-500.0,0.00039726,15]
[358150852,1744780244684,-500.0,0.00039726,15]
[358150853,1744780244694,-500.0,0.00039726,15]
[358150854,1744780244703,-614.81571357,0.00039726,15]
[358150855,1744780244714,-500.0,0.00039726,15]
[358150856,1744780244724,-500.0,0.00039726,15]
[358150857,1744780244734,-500.0,0.00039726,15]
[358150858,1744780244743,-500.0,0.00039726,15]
[358150859,1744780244753,-500.0,0.00039726,15]
[358150860,1744780244762,-500.0,0.00039726,15]
[358150861,1744780244771,-500.0,0.00039726,15]
[358150862,1744780244781,-18969.50461911,0.0004,2]
[358150863,1744780244797,-2401.81924418,0.0004,2]
[358150864,1744780244809,-2339.42951596,0.0004,2]
[358150865,1744780244818,-151.0,0.000404,11]
[358150866,1744780244827,-160.0,0.00040454,3]
[358150867,1744780244837,-160.0,0.00040454,3]
[358150868,1744780244847,-151.0,0.00040454,14]
[358150869,1744780244857,-156.587,0.00040454,14]
[358150870,1744780244866,-256.00109438,0.00040454,14]
[358150871,1744780244876,-207.4,0.00040454,14]
[358150872,1744780244886,-151.0,0.000405,13]
[358150873,1744780244896,-1626.51,0.000406,30]
[358150874,1744780244906,-298.492546,0.00040933,2]
[358150875,1744780244916,-1613.0,0.00040998,5]
[358150876,1744780244926,-1613.0,0.00040998,5]
[358150877,1744780244948,-500.0,0.00041,10]
[358150878,1744780244959,-500.0,0.00041017,30]
[358150879,1744780244969,-501.29520346,0.00041073,5]
[358150880,1744780244978,-500.0,0.00041073,5]
[358150881,1744780244989,-500.0,0.00041073,5]
[358150882,1744780244999,-500.0,0.00041073,2]
[358150883,1744780245010,-500.0,0.00041073,5]
[358150884,1744780245020,-500.0,0.00041073,5]
[358150885,1744780245031,-396.35363636,0.00041073,5]
[358150886,1744780245044,-441.62791847,0.00041073,5]
[358150896,1744780246820,-500.0,0.00039726,15]
[358150897,1744780246832,-500.0,0.00039726,15]
[358150898,1744780246842,-500.0,0.00039726,15]
[358150899,1744780246852,-500.0,0.00039726,15]
[358150900,1744780246862,-500.0,0.00039726,15]
[358150901,1744780246872,-500.0,0.00039726,15]
[358150902,1744780246882,-500.0,0.00039726,15]
[358150903,1744780246892,-500.0,0.00039726,15]
[358150904,1744780246902,-500.0,0.00039726,15]
[358150905,1744780246912,-500.0,0.00039726,15]
[358150906,1744780246922,-500.0,0.00039726,15]
[358150907,1744780246932,-500.0,0.00039726,15]
[358150908,1744780246942,-58.37208153,0.00041073,5]
[358150909,1744780246952,-2091.48926975,0.00041075,3]
[358150912,1744780285168,539.99489856,0.00025,120]
[358150917,1744780577485,10000.0,0.0001801,2]
[358150918,1744780594125,8387.0,0.0001801,2]
[358151012,1744781431854,-171.5354788,0.00026913,2]
[358151014,1744781431864,-1255.59337397,0.00026982,2]
[358151045,1744781438109,-594.53662603,0.00026982,2]
[358151047,1744781438120,-1000.0,0.00027082,2]
[358151049,1744781438130,-202.17501308,0.000279,7]
[358151051,1744781438139,-202.17501298,0.00028579,8]
[358151053,1744781438149,-500.0,0.00028935,2]
[358151055,1744781438159,-500.0,0.00028935,2]
[358151057,1744781438169,-500.0,0.00028935,2]
[358151059,1744781438187,-500.0,0.00028935,2]
[358151061,1744781438203,-500.0,0.00028935,2]
[358151064,1744781438212,-500.0,0.00028935,2]
[358151066,1744781438222,-200.0,0.00028935,2]
[358151067,1744781438231,-300.0,0.00028935,2]
[358151068,1744781438240,-500.0,0.00029,2]
[358151069,1744781438250,-500.0,0.00029,5]
[358151070,1744781438262,-500.0,0.00029,5]
[358151071,1744781438271,-526.57606574,0.00029,5]
[358151072,1744781438281,-500.0,0.00029,5]
[358151073,1744781438291,-336.01674504,0.00029,5]
[358151074,1744781438300,-202.17501298,0.00029257,8]
[358151075,1744781438310,-202.17501298,0.00029936,9]
[358151076,1744781438319,-202.17501298,0.00030614,9]
[358151077,1744781438328,-202.17501298,0.00031293,9]
[358151078,1744781438338,-420.0,0.00031354,3]
[358151079,1744781438347,-202.17501298,0.00031971,10]
[358151080,1744781438356,-202.17501298,0.0003265,10]
[358151081,1744781438365,-202.17501298,0.00033329,11]
[358151082,1744781438374,-587.0,0.00033975,3]
[358151083,1744781438383,-202.17501298,0.00034007,11]
[358151084,1744781438393,-250.0,0.00034084,2]
[358151085,1744781438402,-1069.09092165,0.00034479,2]
[358151086,1744781438412,-1000.0,0.00034479,5]
[358151087,1744781438421,-1000.0,0.00034479,5]
[358151088,1744781438431,-202.17501298,0.00034686,12]
[358151089,1744781438440,-160.0,0.00034904,2]
[358151090,1744781438450,-512.43833558,0.00035258,7]
[358151091,1744781438459,-457.92333033,0.00035258,7]
[358151092,1744781438468,-500.0,0.00035258,7]
[358151093,1744781438478,-387.55662239,0.00035258,7]
[358151094,1744781438490,-500.0,0.00035258,7]
[358151095,1744781438500,-500.0,0.00035258,7]
[358151096,1744781438511,-500.0,0.00035258,7]
[358151097,1744781438522,-202.17501298,0.00035364,12]
[358151098,1744781438531,-202.17501298,0.00036043,13]
[358151099,1744781438541,-202.17501298,0.00036721,13]
[358151100,1744781438550,-823.0,0.00036816,3]
[358151101,1744781438560,-202.17501298,0.000374,13]
[358151102,1744781438569,-202.17501298,0.00038079,14]
[358151103,1744781438578,-202.17501298,0.00038757,14]
[358151104,1744781438589,-40000.0,0.0003877,30]
[358151105,1744781438599,-202.17501298,0.00039436,15]
[358151106,1744781438608,-151.49184115,0.00039626,2]
[358151107,1744781438618,-4075.93745091,0.00039706,3]
[358151108,1744781438627,-500.0,0.00039726,15]
[358151109,1744781438637,-1152.0,0.00039894,5]
[358151110,1744781438647,-202.17501298,0.00040114,15]
[358151111,1744781438656,-161.078955,0.0004059,30]
[358151112,1744781438666,-202.17501298,0.00040793,16]
[358151113,1744781438675,-4075.93745091,0.00040955,3]
[358151114,1744781438684,-374.0606943,0.00040959,30]
[358151115,1744781438694,-524.6690711,0.0004096,120]
[358151116,1744781438703,-4075.93745091,0.00040965,3]
[358151117,1744781438712,-160.0,0.00040965,3]
[358151118,1744781438722,-32607.4996073,0.00040965,3]
[358151119,1744781438731,-160.561548,0.00040975,14]
[358151120,1744781438741,-160.561548,0.00040975,14]
[358151121,1744781438751,-160.561548,0.00040975,14]
[358151122,1744781438761,-160.561548,0.00040975,14]
[358151123,1744781438770,-50545.07801449,0.00040975,2]
[358151124,1744781438780,-2381.02293632,0.00040975,3]
[358151125,1744781438789,-58448.23743843,0.00040975,2]
[358151126,1744781438801,-4250.2505069,0.00040975,2]
[358151154,1744781443396,-18031.40977359,0.00040975,2]
[358151155,1744781443457,-37639.64767298,0.00040975,2]
[358151156,1744781443469,-931.08249143,0.00040975,2]
[358151172,1744781445961,-500.0,0.00028935,2]
[358151173,1744781445970,-530.86955195,0.00028935,2]
[358151174,1744781445980,-214.13044805,0.00028935,2]
[358151176,1744781446028,-316.7391039,0.00028935,2]
[358151177,1744781446039,-500.0,0.00028935,2]
[358151179,1744781446048,-500.0,0.00028935,2]
[358151181,1744781446057,-343.43989612,0.00028935,2]
[358151189,1744781446143,-156.56010388,0.00028935,2]
[358151192,1744781446153,-530.86955195,0.00028935,2]
[358151193,1744781446162,-146.37034417,0.00028935,2]
[358151202,1744781709304,-579.16501852,0.00024703,2]
[358151209,1744781899108,-213.775959,0.00024456,2]
[358151288,1744782632029,-189.56023479,0.00024703,2]
[358151289,1744782632039,-277.5390652,0.00028,10]
[358151290,1744782632089,-35.00719881,0.00028,10]
[358151291,1744782632098,-754.73056936,0.00028828,2]
[358151292,1744782632110,-6.91513796,0.00028828,2]
[358151293,1744782632119,-178.06390943,0.00028828,2]
[358151294,1744782632129,-1000.0,0.00028835,2]
[358151295,1744782632139,-208.76771123,0.000289,8]
[358151296,1744782632147,-1892.58245167,0.00028917,2]
[358151297,1744782632156,-300.0,0.00028917,2]
[358151299,1744782632165,-300.0,0.00028917,2]
[358151301,1744782632179,-162.94,0.00028918,3]
[358151303,1744782632188,-488.86,0.00028918,3]
[358151305,1744782632197,-20647.37945349,0.00028918,2]
[358151307,1744782632206,-500.0,0.00028926,2]
[358151309,1744782632217,-526.49455804,0.00028926,2]
[358151311,1744782632226,-500.0,0.00028926,2]
[358151313,1744782632235,-500.0,0.00028926,2]
[358151315,1744782632245,-500.0,0.00028926,2]
[358151317,1744782632255,-481.04762446,0.00028926,2]
[358151320,1744782632264,-500.0,0.00028926,2]
[358151321,1744782632274,-500.0,0.00028926,2]
[358151323,1744782632283,-173.06694353,0.00028926,2]
[358151326,1744782632295,-19.21248159,0.00028926,2]
[358151328,1744782632304,-500.0,0.00028926,2]
[358151330,1744782632313,-500.0,0.00028926,2]
[358151332,1744782632323,-500.0,0.00028926,2]
[358151334,1744782632333,-500.0,0.00028926,2]
[358151335,1744782632343,-500.0,0.00028926,2]
[358151336,1744782632352,-500.0,0.00028926,2]
[358151337,1744782632361,-500.0,0.00028926,2]
[358151338,1744782632371,-500.0,0.00028926,2]
[358151339,1744782632380,-646.72778421,0.00028926,2]
[358151340,1744782632389,-500.0,0.00028926,2]
[358151341,1744782632399,-500.0,0.00028926,2]
[358151342,1744782632410,-500.0,0.00028926,2]
[358151343,1744782632421,-500.0,0.00028926,2]
[358151344,1744782632431,-500.0,0.00028926,2]
[358151345,1744782632441,-600.0,0.00028926,2]
[358151346,1744782632450,-500.0,0.00028926,2]
[358151347,1744782632460,-500.0,0.00028926,2]
[358151348,1744782632470,-500.0,0.00028926,2]
[358151349,1744782632480,-500.0,0.00028926,2]
[358151350,1744782632490,-500.0,0.00028926,2]
[358151351,1744782632500,-500.0,0.00028926,2]
[358151352,1744782632510,-500.0,0.00028926,2]
[358151353,1744782632520,-500.0,0.00028926,2]
[358151354,1744782632530,-500.0,0.00028926,2]
[358151355,1744782632540,-500.0,0.00028926,2]
[358151356,1744782632550,-500.0,0.00028926,2]
[358151357,1744782632560,-500.0,0.00028926,2]
[358151358,1744782632570,-500.0,0.00028926,2]
[358151359,1744782632580,-500.0,0.00028926,2]
[358151360,1744782632590,-500.0,0.00028926,2]
[358151361,1744782632600,-500.0,0.00028926,2]
[358151362,1744782632609,-500.0,0.00028926,2]
[358151363,1744782632619,-500.0,0.00028926,2]
[358151364,1744782632628,-500.0,0.00028926,2]
[358151365,1744782632638,-500.0,0.00028926,2]
[358151366,1744782632647,-500.0,0.00028926,2]
[358151367,1744782632656,-598.79140798,0.00028926,2]
[358151368,1744782632665,-500.0,0.00028926,2]
[358151369,1744782632675,-500.0,0.00028926,2]
[358151370,1744782632684,-500.0,0.00028926,2]
[358151371,1744782632694,-500.0,0.00028926,2]
[358151372,1744782632704,-500.0,0.00028926,2]
[358151373,1744782632713,-500.0,0.00028926,2]
[358151374,1744782632723,-500.0,0.00028926,2]
[358151375,1744782632732,-500.0,0.00028926,2]
[358151376,1744782632742,-500.0,0.00028926,2]
[358151377,1744782632751,-500.0,0.00028926,2]
[358151378,1744782632762,-500.0,0.00028926,2]
[358151379,1744782632772,-500.0,0.00028926,2]
[358151380,1744782632782,-500.0,0.00028926,2]
[358151381,1744782632792,-500.0,0.00028926,2]
[358151382,1744782632802,-342.09317209,0.00028926,2]
[358151383,1744782632811,-500.0,0.00028926,2]
[358151384,1744782632820,-500.0,0.00028926,2]
[358151385,1744782632830,-500.0,0.00028926,2]
[358151386,1744782632839,-500.0,0.00028926,2]
[358151387,1744782632849,-500.0,0.00028926,2]
[358151388,1744782632858,-500.0,0.00028926,2]
[358151389,1744782632867,-563.40866762,0.00028926,2]
[358151390,1744782632877,-500.0,0.00028926,2]
[358151391,1744782632886,-563.40866762,0.00028926,2]
[358151392,1744782632896,-500.0,0.00028926,2]
[358151393,1744782632905,-563.40866762,0.00028926,2]
[358151394,1744782632915,-500.0,0.00028926,2]
[358151395,1744782632924,-563.40866762,0.00028926,2]
[358151396,1744782632933,-500.0,0.00028926,2]
[358151397,1744782632942,-563.40866762,0.00028926,2]
[358151398,1744782632952,-500.0,0.00028926,2]
[358151399,1744782632962,-563.40866762,0.00028926,2]
[358151400,1744782632972,-563.40866762,0.00028926,2]
[358151401,1744782632982,-500.0,0.00028926,2]
[358151402,1744782632991,-563.40866762,0.00028926,2]
[358151403,1744782633000,-500.0,0.00028926,2]
[358151404,1744782633011,-563.40866762,0.00028926,2]
[358151405,1744782633021,-500.0,0.00028926,2]
[358151406,1744782633030,-563.40866762,0.00028926,2]
[358151407,1744782633039,-500.0,0.00028926,2]
[358151408,1744782633049,-563.40866762,0.00028926,2]
[358151409,1744782633059,-563.40866762,0.00028926,2]
[358151410,1744782633068,-500.0,0.00028926,2]
[358151411,1744782633077,-500.0,0.00028926,2]
[358151412,1744782633087,-563.40866762,0.00028926,2]
[358151413,1744782633096,-500.0,0.00028926,2]
[358151414,1744782633106,-563.40866762,0.00028926,2]
[358151415,1744782633115,-500.0,0.00028926,2]
[358151416,1744782633125,-563.40866762,0.00028926,2]
[358151417,1744782633135,-500.0,0.00028926,2]
[358151418,1744782633144,-563.40866762,0.00028926,2]
[358151419,1744782633154,-500.0,0.00028926,2]
[358151420,1744782633164,-563.40866762,0.00028926,2]
[358151421,1744782633178,-500.0,0.00028926,2]
[358151422,1744782633187,-563.40866762,0.00028926,2]
[358151423,1744782633197,-500.0,0.00028926,2]
[358151424,1744782633207,-563.40866762,0.00028926,2]
[358151425,1744782633217,-563.40866762,0.00028926,2]
[358151426,1744782633227,-500.0,0.00028926,2]
[358151427,1744782633237,-563.40866762,0.00028926,2]
[358151428,1744782633247,-563.40866762,0.00028926,2]
[358151429,1744782633258,-500.0,0.00028926,2]
[358151430,1744782633270,-563.40866762,0.00028926,2]
[358151431,1744782633280,-500.0,0.00028926,2]
[358151432,1744782633289,-563.40866762,0.00028926,2]
[358151433,1744782633299,-500.0,0.00028926,2]
[358151434,1744782633309,-563.40866762,0.00028926,2]
[358151435,1744782633318,-500.0,0.00028926,2]
[358151436,1744782633327,-563.40866762,0.00028926,2]
[358151437,1744782633336,-500.0,0.00028926,2]
[358151438,1744782633346,-563.40866762,0.00028926,2]
[358151439,1744782633356,-563.40866762,0.00028926,2]
[358151440,1744782633365,-500.0,0.00028926,2]
[358151441,1744782633375,-563.40866762,0.00028926,2]
[358151442,1744782633384,-500.0,0.00028926,2]
[358151443,1744782633393,-563.40866762,0.00028926,2]
[358151444,1744782633403,-500.0,0.00028926,2]
[358151445,1744782633413,-563.40866762,0.00028926,2]
[358151446,1744782633423,-563.40866762,0.00028926,2]
[358151447,1744782633433,-563.40866762,0.00028926,2]
[358151448,1744782633443,-563.40866762,0.00028926,2]
[358151449,1744782633452,-500.0,0.00028926,2]
[358151450,1744782633462,-500.0,0.00028926,2]
[358151451,1744782633472,-563.40866762,0.00028926,2]
[358151452,1744782633481,-563.40866762,0.00028926,2]
[358151453,1744782633491,-500.0,0.00028926,2]
[358151454,1744782633501,-500.0,0.00028926,2]
[358151455,1744782633511,-563.40866762,0.00028926,2]
[358151456,1744782633522,-459.57700143,0.00028926,2]
[358151457,1744782633532,-500.0,0.00028926,2]
[358151458,1744782633542,-557.26239124,0.00028926,2]
[358151459,1744782633551,-500.0,0.00028926,2]
[358151460,1744782633561,-557.26239124,0.00028926,2]
[358151461,1744782633570,-500.0,0.00028926,2]
[358151462,1744782633579,-557.26239124,0.00028926,2]
[358151463,1744782633589,-500.0,0.00028926,2]
[358151464,1744782633599,-500.0,0.00028926,2]
[358151465,1744782633608,-557.26239124,0.00028926,2]
[358151466,1744782633618,-500.0,0.00028926,2]
[358151467,1744782633627,-557.26239124,0.00028926,2]
[358151468,1744782633636,-500.0,0.00028926,2]
[358151469,1744782633646,-557.26239124,0.00028926,2]
[358151470,1744782633655,-557.26239124,0.00028926,2]
[358151471,1744782633665,-500.0,0.00028926,2]
[358151472,1744782633675,-557.26239124,0.00028926,2]
[358151473,1744782633685,-500.0,0.00028926,2]
[358151474,1744782633695,-557.26239124,0.00028926,2]
[358151475,1744782633704,-557.26239124,0.00028926,2]
[358151476,1744782633714,-500.0,0.00028926,2]
[358151477,1744782633723,-500.0,0.00028931,2]
[358151478,1744782633733,-502.23216588,0.00029,5]
[358151479,1744782633742,-500.0,0.00029,5]
[358151480,1744782633752,-500.0,0.00029,5]
[358151481,1744782633761,-524.39835655,0.00029,5]
[358151482,1744782633771,-325.88,0.00030288,3]
[358151483,1744782633781,-208.76771112,0.000304,9]
[358151484,1744782633791,-761.64570725,0.00031141,2]
[358151485,1744782633801,-420.0,0.00031201,2]
[358151486,1744782633811,-420.0,0.00031335,3]
[358151487,1744782633821,-208.76771112,0.000319,10]
[358151488,1744782633831,-500.0,0.00032877,5]
[358151489,1744782633840,-173.0,0.00033,2]
[358151490,1744782633850,-250.0,0.00033355,2]
[358151491,1744782633859,-208.76771112,0.000334,11]
[358151492,1744782633869,-761.64570725,0.00033454,2]
[358151493,1744782633879,-587.0,0.00033665,2]
[358151494,1744782633888,-587.0,0.00033956,3]
[358151495,1744782633898,-1000.0,0.00034479,5]
[358151496,1744782633907,-1000.0,0.00034479,5]
[358151497,1744782633917,-208.76771112,0.000349,12]
[358151498,1744782633926,-178.06390942,0.00034912,2]
[358151499,1744782633936,-761.64570725,0.00035767,2]
[358151500,1744782633946,-208.76771112,0.000364,13]
[358151501,1744782633956,-823.0,0.00036795,3]
[358151502,1744782633966,-208.76771112,0.000379,14]
[358151503,1744782633976,-761.64570725,0.00038081,2]
[358151504,1744782633985,-208.76771112,0.000394,15]
[358151505,1744782633995,-160.0,0.00039726,7]
[358151506,1744782634005,-500.0,0.00039726,7]
[358151507,1744782634015,-500.0,0.00039726,7]
[358151508,1744782634025,-500.0,0.00039726,7]
[358151509,1744782634035,-500.0,0.00039726,7]
[358151510,1744782634045,-500.0,0.00039726,7]
[358151511,1744782634055,-500.0,0.00039726,7]
[358151512,1744782634065,-500.0,0.00039726,7]
[358151513,1744782634074,-500.0,0.00039726,7]
[358151514,1744782634085,-500.0,0.00039726,7]
[358151515,1744782634095,-500.0,0.00039726,7]
[358151516,1744782634104,-500.0,0.00039726,7]
[358151517,1744782634114,-500.0,0.00039726,7]
[358151518,1744782634123,-500.0,0.00039726,7]
[358151519,1744782634133,-500.0,0.00039726,7]
[358151520,1744782634142,-500.0,0.00039726,7]
[358151521,1744782634151,-500.0,0.00039726,7]
[358151522,1744782634160,-500.0,0.00039726,7]
[358151523,1744782634172,-557.8686274,0.00039726,7]